{"text_format":"1","workbook":"xlsx","n_sheets":3,"sheets":["Sheet1","Sheet2","Sheet3"],"not_rendered":{"charts":0,"images":0,"macros":0,"external_links":0,"defined_names":2,"comments":0,"pivot_tables":0},"unopened":[],"bounds":{"document_bytes":16777216,"sheet_cells":100000,"rows_first":2000,"rows_last":500,"rows_between":2000,"halvings":0,"cell_chars":16384,"cell_head_chars":4096},"cells_cut":0,"cells_raw":0,"read":"whole","date_system":"1900"}

{"sheet":"Sheet1","index":0,"n_rows":104,"n_cols":11,"rows_kept":104,"cut":false,"hidden":false,"merged":[]}
["                                                                    USDA - RUS",null,"Title  of  Information  Document",null,null,null,null,null,"OMB  No."]
[null,null," ",null,null,null,null,null,null,"0572-0112"]
[" SUMMARY  OF  INFORMATION  COLLECTION",null,"7 CFR 1775 Technical Assistance Programs",null,null,null,null,null,"Date  Prepared"]
[null,null,null,null,null,null,null,null,null,"2017-05-18"]
[" INSTRUCTIONS:"," ",null,null,">","(f)  TOTAL",null,"(h)  TOTAL",null," "]
["Use this form when a single information collection document involves multiple reporting and                  ",null,null,null,">","-","= (e)  Average","-","= (g)  Average","-","= (j)  Average"]
["  recordkeeping requirements.  ",null,null,null,">","(d)  TOTAL",null,"(f)  TOTAL",null,"(i)  TOTAL"]
["         IDENTIFICATION  OF  REPORTING  AND  RECORDKEEPPING  REQUIREMENTS",null,null,null,null,null,"ANNUAL  BURDEN"]
[null,null,"FORM",null,null,"REPORTS",null,null,null,"RECORDS"]
[null,null,"NO(s)","NO.  OF","NO.  OF","TOTAL","HOURS","TOTAL","NO.  OF","ANNUAL","TOTAL"]
["SECTION  OF",null,"(If  \"none\"","RESPON-","RESPONSES","ANNUAL","PER","HOURS","RECORD-","HOURS  PER","RECORD-"]
["REGULATIONS","DESCRIPTION","so  state)","DENTS","PER","RESPONSES","RESPONSE","(Col.  f  &  g)","KEEPERS","RECORD-","KEEPING"]
[null,null,null,null,"RESPON-","(Col.  d  &  e)",null,null,null,"KEEPER","HOURS"]
[null,null,null,null,"DENT",null,null,null,null,null,"(Col.  i  &  j)"]
["(a)","(b)","(c)","(d)","(e)","(f)","(g)","(h)","(i)","(j)","(k)"]
[null,"Items Cleared With This Package*"]
[]
[null,"Initial Application/Application Process"]
[]
["1775.10(c)(6)","Documentation of assistance provided to Rural Development employees","Written",82,1,{"$f":"SUM(D20*E20)","v":82},0.25,{"$f":"SUM(F20*G20)","v":20.5}]
[]
["1775.10(c)(9)","Indirect Cost Agreement","Written",82,1,{"$f":"SUM(D22*E22)","v":82},1,{"$f":"SUM(F22*G22)","v":82}]
[]
["1775.10(c)(10)","Statement of Compliance , Title VI of Civil Rights Act of 1964","Written",82,1,{"$f":"SUM(D24*E24)","v":82},0.5,{"$f":"SUM(F24*G24)","v":41}]
[]
["1775.10","Statement concerning assistance under the National Forest Service-Dependent Rural Communities Economic Diversification Act","Written",82,1,{"$f":"SUM(D26*E26)","v":82},1,{"$f":"SUM(F26*G26)","v":82}]
[]
["1775.10(d)(1)","Legal Authority and Responsibility","Written",82,1,{"$f":"SUM(D28*E28)","v":82},0.25,{"$f":"SUM(F28*G28)","v":20.5}]
[]
["1775.10(d)(2)","Evidence of Tax Exempt Status","Written",82,1,{"$f":"SUM(D30*E30)","v":82},0.25,{"$f":"SUM(F30*G30)","v":20.5}]
[]
["1775.10(d)(3)","Narrative","Written"]
[null,"Initial Submission",null,82,1,{"$f":"SUM(D33*E33)","v":82},2,{"$f":"SUM(F33*G33)","v":164}]
[null,"Revised Submission",null,53,1,{"$f":"SUM(D34*E34)","v":53},2,106]
[null," ",null,null,null," ",null," "]
["1775.10(d)(8)","Scope of Work","Written"]
[null,"Initial Submission",null,82,1,{"$f":"SUM(D37*E37)","v":82},12,{"$f":"SUM(F37*G37)","v":984}]
[null,"Revised Submission",null,53,1,{"$f":"SUM(D38*E38)","v":53},12,636]
[]
["1775.10(d)(6)","Budget justification","Written"]
[null,"Initial Submission",null,82,1,{"$f":"SUM(D41*E41)","v":82},10,{"$f":"SUM(F41*G41)","v":820}]
[null,"Revised Submission",null,53,1,{"$f":"SUM(D42*E42)","v":53},10,530]
[]
["1775.10(d)(4)","Latest Financial Information","Written",82,1,{"$f":"SUM(D44*E44)","v":82},1,{"$f":"SUM(F44*G44)","v":82}]
[]
["1775.10(d)(7)","Evidence of Financial Management System","Written",82,1,{"$f":"SUM(D46*E46)","v":82},0.25,{"$f":"SUM(F46*G46)","v":20.5}]
[]
[null,"Post-Application"]
[1775.13,"Grant Agreement","RUS Guide 1775-1",53,1,{"$f":"SUM(D49*E49)","v":53},2,{"$f":"SUM(F49*G49)","v":106}]
[]
[1775.2,"Project Performance Report","Written",53,4,{"$f":"SUM(D51*E51)","v":212},12,{"$f":"SUM(F51*G51)","v":2544}]
[]
[1775.21,"Audit","Written",12,1,{"$f":"SUM(D53*E53)","v":12},3,{"$f":"SUM(F53*G53)","v":36}]
[]
[1775.21,"Financial Statements","Written",41,1,{"$f":"SUM(D55*E55)","v":41},1,{"$f":"SUM(F55*G55)","v":41}]
[]
[null,null,null,null,null,null,null,null," ",null," "]
[null,"Items Cleared Under Other Packages"]
[]
["1775.10(c)(3)","Certification Regarding Debarment, Suspension, and Other Responsibility Matters - Primary Covered Transactions","AD-1047 (0505-0027)",45,1,{"$f":"SUM(D60*E60)","v":45},0.25,{"$f":"SUM(F60*G60)","v":11.25}]
[]
["1775.10(c)(5)","Certification Regarding Debarment","AD-1048 (0505-0027)",45,1,{"$f":"SUM(D62*E62)","v":45},0.25,{"$f":"SUM(F62*G62)","v":11.25}]
[]
["1775.10(c)(4)","Certification Regarding Drug-Free Workplace Requirements (Grants) Alternative I - for Grantees Other Than Individuals","AD-1049 (0505-0027)",45,1,{"$f":"SUM(D64*E64)","v":45},0.25,{"$f":"SUM(F64*G64)","v":11.25}]
[]
[null,"Total Hours This Package",null,82,null,1514,null,6369,null,"PAGE 1"]
[]
[null,"Representations Regarding Felony Conviction and Tax ","AD-3030",82,1,{"$f":"SUM(D68*E68)","v":82},0.25,{"$f":"SUM(F68*G68)","v":20.5}]
[null,"Delinquent Status for Corporate Applicants","(0505-0025)"]
[]
[null,"Assurances Regarding Felony Conviction and Tax Deilnquent","AD-3031",41,1,41,0.05,2.0500000000000003]
[null,"Status for Corporate Applicants","(0505-0025)"]
[]
[]
["1775.10(c)(1)","Application for Federal Assistance (Non-construction Programs)","SF-424",null,null,null,null,null," "," "," "]
[null,"Initial Submission","(4040-0004)",82,1,142,0.75,{"$f":"SUM(F76*G76)","v":106.5},null,null," "]
[null,"Revised Submission",null,26,1,26,0.75,19.5]
[]
["1775.10(c)(2)","Budget Information--Non-Construction Programs","SF-424A",null,null,null,null,null," "," "," "]
[null,"Initial Submission","(4040-0006)",82,1,142,3,{"$f":"SUM(F80*G80)","v":426}]
[null,"Revised Submission",null,26,1,26,3,78]
[]
["1775.10(c)(2)","Assurances--Non-construction Programs","SF-424B"]
[" ","Initial Submission","(4040-0007)",82,1,142,0.25,{"$f":"SUM(F84*G84)","v":35.5}," "," "," "]
[null,"Revised Submission",null,26,1,26,0.25,6.5]
[]
["1775.10(c)(8)","Equal Opportunity Agreement","RD 400-1",45,1,{"$f":"SUM(D87*E87)","v":45},0.17,{"$f":"SUM(F87*G87)","v":7.65}]
[null," ","(0575-0018)",null,null," ",null," "]
[]
["1775.10(c)(7)","Assurance Agreement","RD 400-4",45,1,{"$f":"SUM(D90*E90)","v":45},0.25,{"$f":"SUM(F90*G90)","v":11.25}]
[null,null,"(0575-0018)",null,null," ",null," "]
[]
["1775.18(a)","Request for Advance or Reimbursement","SF-270",35,12,{"$f":"SUM(D93*E93)","v":420},1,{"$f":"SUM(F93*G93)","v":420}]
[" ",null,"(4040-0012)",10,4,{"$f":"SUM(D94*E94)","v":40},1,{"$f":"SUM(F94*G94)","v":40}]
[]
["1775.10(c)(11)","Disclosure of Lobbying Activities","SF LLL",45,1,{"$f":"SUM(D96*E96)","v":45},0.25,{"$f":"SUM(F96*G96)","v":11.25}]
[null,null,"(4040-0013)"]
[]
[null,"Federal Financial Report","SF-425",45,4,{"$f":"SUM(D99*E99)","v":180},1.5,{"$f":"SUM(F99*G99)","v":270}]
[null,null,"(4040-0014)"]
[" RUS  Form  36   (07-91)",null,null,null,null,null,null,null,null,"Page __2__  of __2__"]
[]
["*Note: Applications: Private sector responses = 66. American Indian responses = 16. Total = 82"]
["** Note: Obligations/Approvals: Private sector responses = 41; Tribal responses = 12; Total = 53"]

{"sheet":"Sheet2","index":1,"n_rows":0,"n_cols":0,"rows_kept":0,"cut":false,"hidden":false,"merged":[]}

{"sheet":"Sheet3","index":2,"n_rows":0,"n_cols":0,"rows_kept":0,"cut":false,"hidden":false,"merged":[]}